Cogmind - Beta 15 @@@ ROGUE MODE // 2025.07.24 @ 06:28:56 Player: shapeshifter Result: Destroyed by ED-O12(R) with Subdweller Laser Performance ------------- Evolutions (0) 0 Regions Visited (3) 600 Robots Destroyed (23) 115 Value Destroyed (457) 457 Prototype IDs (0) 0 Alien Tech Used (0) 0 Bonus (0) 0 TOTAL SCORE: 1172 Bonus ------- None Cogmind --------- Core Integrity 0/250 Matter 275/300 Energy 198/200 System Corruption 0% Temperature Cool (6) Movement Rolling (100) Location -10/Subcaves Parts ------- > --- POWER (1) -------- Subdweller Power Source > --- PROPULSION (2) --- Compact Wheel Compact Wheel > --- UTILITY (2) ------ Heat Sink Large Storage Unit > --- WEAPON (2) ------- (None) > --- INVENTORY (15) --- Aluminum Leg Aluminum Leg Heat Sink Large Storage Unit ECM Suite Power Shielding EM Pulse Gun Datajack Peak State ------------ > --- POWER ------------ Subdweller Power Source > --- PROPULSION ------- Compact Wheel Compact Wheel > --- UTILITY ---------- Heat Sink Large Storage Unit > --- WEAPON ----------- Flamer > --- INVENTORY -------- Aluminum Leg Aluminum Leg Heat Sink Large Storage Unit ECM Suite Power Shielding EM Pulse Gun Datajack [Rating: 8] Favorites ----------- Power Light Ion Engine Engine Light Ion Engine Propulsion Compact Wheel Treads Light Treads Wheel Compact Wheel Utility Heat Sink Device Heat Sink Storage Large Storage Unit Weapon Beam Cannon Energy Gun Small Laser Energy Cannon Beam Cannon Ballistic Gun Assault Rifle Special Weapon Flamer Build | -11 -10 -10 -10 ------- Run | Yrd Mat Min Sub Slots Evolved . | . . . . Power . | . . . . Propulsion . | . . . . Utility . | . . . . Weapon . | . . . . Parts Attached 19 | 7 6 3 3 Power 3 | 1 1 . 1 Engine 3 | 1 1 . 1 Core . | . . . . Reactor . | . . . . Propulsion 5 | 2 1 1 1 Treads 2 | 2 . . . Leg . | . . . . Wheel 3 | . 1 1 1 Hover . | . . . . Flight . | . . . . Utility 5 | 2 2 1 . Device 3 | 1 1 1 . Storage 2 | 1 1 . . Processor . | . . . . Hackware . | . . . . Protection . | . . . . Artifact . | . . . . Weapon 6 | 2 2 1 1 Energy Gun 2 | 1 1 . . Energy Cannon 1 | . 1 . . Ballistic Gun 2 | 1 . 1 . Ballistic Cannon . | . . . . Launcher . | . . . . Special Weapon 1 | . . . 1 Impact Weapon . | . . . . Slashing Weapon . | . . . . Piercing Weapon . | . . . . Special Melee Weapon . | . . . . Unidentified Prototypes . | . . . . Parts Lost 12 | . 4 3 5 Power 2 | . 1 . 1 Propulsion 3 | . 1 1 1 Utility 2 | . 1 1 . Weapon 5 | . 1 1 3 Highest Loss Streak 4 | . 3 3 4 To Critical Strikes . | . . . . Average Backups 5 | 3 6 5 8 Power . | . . . . Propulsion 1 | 1 1 . 2 Utility 1 | . . 2 4 Weapon 1 | 1 2 1 1 Tool/Special . | . . . . Unused Backups 8 | . . . 8 Power . | . . . . Propulsion 2 | . . . 2 Utility 4 | . . . 4 Weapon 1 | . . . 1 Tool/Special 1 | . . . 1 Average Slot Usage (%) 97 | . 96 99 81 Engine 13 | . 13 14 10 Treads 10 | . 25 7 . Wheel 16 | . 1 19 28 Device 13 | . 13 13 14 Storage 14 | . 14 14 14 Energy Gun 8 | . 14 7 . Energy Cannon 10 | . 1 14 5 Ballistic Gun 7 | . 11 6 5 Peak Build Rating 8 | 7 7 7 8 Average Rating 6 | 5 6 6 6 On Entrance 5 | . 7 7 7 Naked Turns . | . . . . Heaviest Build 29 | 14 28 29 29 Greatest Support 40 | 40 40 32 32 Greatest Overweight (x) 1 | . 1 1 1 Average Overweight (x) . | . . . . Largest Inventory Capacity 15 | 8 15 15 15 Average Capacity 12 | 7 8 15 15 Most Carried 10 | 6 8 9 10 Average Carried 5 | 3 6 5 8 Final Capacity 15 | 8 15 15 15 Final Carried 9 | 4 6 9 8 Class Distribution -------------------- 100% | Mutant Dominant Class ---------------- Mutant | -10/Materials Mutant | -10/Mines Mutant | -10/Subcaves Resources | -11 -10 -10 -10 ----------- Run | Yrd Mat Min Sub Matter Collected 481 | 297 127 57 . Remotely . | . . . . Salvage Created 629 | 125 267 237 . Parts 54 | 18 21 15 . Haulers Intercepted . | . . . . Recyclers Shooed . | . . . . Parts Field Recycled . | . . . . Retrieved Matter . | . . . . Parts Self-Destructed . | . . . . Prevented . | . . . . Kills | -11 -10 -10 -10 ------- Run | Yrd Mat Min Sub Combat Hostiles Destroyed 15 | . 8 7 . Guns 9 | . 7 2 . Cannons 6 | . 1 5 . Classes Destroyed 4 | 1 3 . . Tunneler 7 | 7 . . . Operator 1 | . 1 . . Swarmer 6 | . 3 3 . Grunt 9 | . 5 4 . Best Kill Streak 5 | 3 4 5 . Combat Bots Only 5 | . 4 5 . Max Kills in Single Turn 1 | 1 1 1 . Gunslinging . | . . . . Exploded . | . . . . Melee . | . . . . Uniques/NPCs Destroyed . | . . . . Combat | -11 -10 -10 -10 -------- Run | Yrd Mat Min Sub Hostile Shots Fired 160 | . 96 49 15 Missed 43 | . 24 14 5 Hits 117 | . 72 35 10 Projectile 117 | . 72 35 10 Critical Strikes 1 | . . . 1 Damage Taken 1296 | . 728 362 206 Core 263 | . 125 51 87 Absorbed by Shields . | . . . . Core Remaining (%) 100 | 100 . . . Volleys Fired 64 | 9 40 15 . Largest 2 | 2 2 2 . Hottest 100 | 60 100 100 . Shots Fired 121 | 18 73 30 . Gun 102 | 18 69 15 . Cannon 19 | . 4 15 . Launcher . | . . . . Special . | . . . . Kinetic 51 | 9 29 13 . Thermal 70 | 9 44 17 . Explosive . | . . . . Electromagnetic . | . . . . Robot Hit Streak 9 | 8 9 7 . Robot Miss Streak 3 | 1 2 3 . Penetration Max . | . . . . Secondary Targets 2 | . 2 . . Max Gunslinging Chain 1 | . 1 . . Shots Hit Robots 77 | 13 46 18 . Core Hits 31 | 7 14 10 . Critical Kills . | . . . . Critical Parts Destroyed . | . . . . Critical Strikes . | . . . . Melee Attacks . | . . . . Impact . | . . . . Slashing . | . . . . Piercing . | . . . . Sneak Attacks . | . . . . Combat Hostiles . | . . . . Follow-up Attacks . | . . . . Damage Inflicted 977 | 152 558 267 . Guns 785 | 152 523 110 . Cannons 191 | . 35 156 . Explosions . | . . . . Melee . | . . . . Ramming 1 | . . 1 . Kinetic 386 | 83 216 87 . Thermal 590 | 69 342 179 . Explosive . | . . . . Electromagnetic . | . . . . Impact . | . . . . Slashing . | . . . . Piercing . | . . . . Highest Corruption . | . . . . Average Corruption . | . . . . Corruption Purged . | . . . . Corruption Blocked . | . . . . Overload Shots . | . . . . Overflow Damage . | . . . . Projectiles . | . . . . Explosions . | . . . . Melee . | . . . . Knockbacks . | . . . . Impact . | . . . . Kinetic . | . . . . Secondary . | . . . . Self-Inflicted Damage . | . . . . Shots . | . . . . Rammed 1 | . . 1 . Targets Rammed 1 | . . 1 . Kicked . | . . . . Crushed . | . . . . Highest Temperature 161 | . 54 161 . Average Temperature 45 | . 26 62 . Received Heat Transfer 456 | . 324 108 24 Siege Activations . | . . . . Martial Activations . | . . . . Shielding Activations . | . . . . Robots Disrupted . | . . . . Combat Hostiles . | . . . . Robots Corrupted . | . . . . Combat Hostiles . | . . . . Parts Fried . | . . . . Impact Corruptions . | . . . . Robots Melted . | . . . . Combat Hostiles . | . . . . Parts Melted . | . . . . Heat Transferred 1307 | 150 774 383 . Parts Sabotaged . | . . . . Parts Stolen . | . . . . Parts Stripped . | . . . . Power Chain Reactions . | . . . . Alert | -11 -10 -10 -10 ------- Run | Yrd Mat Min Sub Maximum Alert Level . | . . . . Low Security (%) 100 | 100 100 100 . Level 1 . | . . . . Level 2 . | . . . . Level 3 . | . . . . Level 4 . | . . . . Level 5 . | . . . . High Security . | . . . . Max Security . | . . . . Peak Influence 105 | 10 105 92 . Initial 13 | . . 13 . Average 17 | 1 43 12 . Influence Increases 414 | 35 209 170 . Destroy 0b10 Robot/C 300 | . 160 140 . Destroy 0b10 Robot/NC 40 | 35 5 . . Destroy Leader 60 | . 30 30 . Successful Hack 14 | . 14 . . Influence Decreases 414 | 35 174 205 . Entered New Map 22 | . . 22 . Time Decay 332 | 35 134 163 . Lost Part 60 | . 40 20 . Squads Dispatched 2 | . 2 . . Investigation 1 | . 1 . . Extermination . | . . . . Reinforcement 1 | . 1 . . Assault . | . . . . Garrison . | . . . . Intercept . | . . . . Searches Triggered . | . . . . Construction Impeded . | . . . . Haulers Reinforced . | . . . . Active Scanning Responses . | . . . . Cargo Convoy Interrupts . | . . . . Stealth | -11 -10 -10 -10 --------- Run | Yrd Mat Min Sub Distress Signals 1 | . 1 . . Communications Jammed . | . . . . Distress Signals . | . . . . Times Spotted 23 | . 12 7 4 Peak Tracking Total 5 | . 5 5 2 Tactical Retreats . | . . . . Traps | -11 -10 -10 -10 ------- Run | Yrd Mat Min Sub Traps Triggered 1 | . 1 . . Indirectly . | . . . . Trap Hack Attempts . | . . . . Triggered . | . . . . Disarmed . | . . . . Reprogrammed . | . . . . Reused . | . . . . Traps Extracted . | . . . . Installed . | . . . . Triggered . | . . . . Machines | -11 -10 -10 -10 ---------- Run | Yrd Mat Min Sub Machines Disabled . | . . . . Max in Single Turn . | . . . . Machines Repaired . | . . . . Machines Dismantled . | . . . . Machines Sabotaged . | . . . . Overloaded Fab Kills . | . . . . Hacking | -11 -10 -10 -10 --------- Run | Yrd Mat Min Sub Machines Accessed 1 | . 1 . . Terminals 1 | . 1 . . Fabricators . | . . . . Repair Stations . | . . . . Recycling Units . | . . . . Scanalyzers . | . . . . Garrison Access . | . . . . Total Hacks 3 | . 3 . . Successful 1 | . 1 . . Failed 2 | . 2 . . Catastrophic 1 | . 1 . . Database Lockouts . | . . . . Manual 3 | . 3 . . Terminals 3 | . 3 . . Fabricators . | . . . . Repair Stations . | . . . . Recycling Units . | . . . . Scanalyzers . | . . . . Garrison Access . | . . . . Terminal Hacks . | . . . . Fabricator Hacks . | . . . . Repair Station Hacks . | . . . . Recycling Unit Hacks . | . . . . Scanalyzer . | . . . . Garrison Access Hacks . | . . . . Unauthorized Hacks 1 | . 1 . . Terminals 1 | . 1 . . Botnet 1 | . 1 . . Fabricators . | . . . . Repair Stations . | . . . . Recycling Units . | . . . . Scanalyzers . | . . . . Garrison Access . | . . . . Data Cores Recovered . | . . . . Used . | . . . . Hacking Detections 1 | . 1 . . Full Trace Events . | . . . . Feedback Events . | . . . . Feedback Blocked . | . . . . Robot Schematics Acquired . | . . . . Robots Built . | . . . . Authchips . | . . . . Time . | . . . . Total Robot Build Rating . | . . . . Part Schematics Acquired . | . . . . Parts Built . | . . . . Authchips . | . . . . Time . | . . . . Total Part Build Rating . | . . . . Parts Repaired . | . . . . Time . | . . . . Parts Recycled . | . . . . Recycled Matter . | . . . . Retrieved Matter . | . . . . Retrieved Components . | . . . . Parts Scanalyzed . | . . . . Part Schematics Acquired . | . . . . Parts Damaged . | . . . . Bothacking | -11 -10 -10 -10 ------------ Run | Yrd Mat Min Sub Used RIF Installer . | . . . . Robots Hacked . | . . . . Non-combat . | . . . . Combat . | . . . . Robot Hacks Applied . | . . . . Relay Couplers Released . | . . . . Fabnet Peak Effective % . | . . . . Robots Rewired . | . . . . Allies Hacked . | . . . . Hacks Repelled . | . . . . Allies | -11 -10 -10 -10 -------- Run | Yrd Mat Min Sub Total Allies . | . . . . Largest Group . | . . . . Highest-Rated Group . | . . . . Highest-Rated Ally . | . . . . Total Orders . | . . . . Ally Attacks . | . . . . Total Damage . | . . . . Kills . | . . . . Allies Corrupted . | . . . . Allies Melted . | . . . . Intel | -11 -10 -10 -10 ------- Run | Yrd Mat Min Sub Active Infowar (turns) 144 | 8 136 . . Seismic 144 | 8 136 . . Robot Analysis Total . | . . . . Derelict Logs Recovered 4 | . . 2 2 Drone Launches . | . . . . Drone Recoveries . | . . . . Exploration | -11 -10 -10 -10 ------------- Run | Yrd Mat Min Sub Turns Passed 1901 | 232 350 1224 95 Spaces Moved 942 | 125 146 581 90 Core 11 | 11 . . . Treads 238 | 114 124 . . Legs . | . . . . Wheels 693 | . 22 581 90 Hover . | . . . . Flight . | . . . . Fastest Speed 50 | 50 100 100 100 Average Speed 118 | 150 152 106 100 Slowest Speed 160 | 160 160 115 115 Overloaded Moves . | . . . . Propulsion Burnouts . | . . . . Robots Hopped . | . . . . Potential Cave-ins . | . . . . Cave-ins Triggered . | . . . . Exploration Rate (%) 35 | 4 27 100 11 Regions Visited 3 Branch Regions 2 Pre-discovered Areas 3 | . . 1 2 Known Exits Taken . | . . . . Unknown Exits Taken 3 | 1 1 1 . Scrap Searched 1 | . . 1 . Spaces Dug . | . . . . Terrain Destroyed . | . . . . Melee . | . . . . Projectile . | . . . . AOE . | . . . . Terrain Rammed . | . . . . Walls Destroyed . | . . . . Machines Disabled . | . . . . Actions | -11 -10 -10 -10 --------- Run | Yrd Mat Min Sub Total 1602 | 151 200 1156 95 Wait 551 | . . 551 . Move 939 | 124 145 580 90 Hop . | . . . . Pick Up 26 | 11 7 6 2 Fast Attach . | . . . . Attach 17 | 7 4 3 3 Detach . | . . . . Swap 2 | . 2 . . Drop 2 | . 2 . . Fire 64 | 9 40 15 . Melee . | . . . . Ram 1 | . . 1 . Kick . | . . . . Crush . | . . . . Escape Stasis . | . . . . Rewire . | . . . . Trap . | . . . . Miscellaneous . | . . . . Route ------- -11/Scrapyard -10/Materials -10/Mines (discovered 3 exits: [*Mat x2] / [*Sub]) -10/Subcaves History --------- Turn | Location | Event 42 | -11/Scrapyard | Discovered new exit (range 16) 233 | -11/Scrapyard | Entered Materials 303 | -10/Materials | Build established: Mutant 478 | -10/Materials | Discovered new exit (range 16) 568 | -10/Materials | Lost 3 parts (1p1n1w) 583 | -10/Materials | Entered Mines 644 | -10/Mines | Learned 2 Materials zone layouts 771 | -10/Mines | Learned location of Mines (-9) 1250 | -10/Mines | Core integrity fell below 50% 1290 | -10/Mines | Lost 3 parts (1n1u1w) 1326 | -10/Mines | Discovered new exit (range 8) 1387 | -10/Mines | Discovered new exit (range 8) 1794 | -10/Mines | Discovered new exit (range 5) 1807 | -10/Mines | Entered Subcaves 1810 | -10/Subcaves | Learned location of Zion (-6) 1849 | -10/Subcaves | Core integrity fell below 20% 1862 | -10/Subcaves | Shifting Twisted Machinery released Sub. Power Source 1868 | -10/Subcaves | Shifting Twisted Machinery released Flamer 1873 | -10/Subcaves | Lost 4 parts (1p1n2w) 1902 | -10/Subcaves | Destroyed by ED-O12(R) with Subdweller Laser Last Messages --------------- 01802_ U-05 Engineer lays Concrete. 01805_ U-05 Engineer builds a Wall. 01806_ T-07 Excavator is excavating. LOCATION=UNKNOWN AMBIENT_HEAT=-10 GOAL=ESCAPE 01810_ Acquired derelict log, extracted data. World map updated: -6/Zion. 01822_ Acquired derelict log, extracted data. World map confirmed: -6/Zion. 01838_ Assault Rifle destroyed. 01839_ Beam Cannon destroyed. 01840_ Lgt. Ion Engine destroyed. 01842_ Com. Wheel destroyed. Sub. Power Source falls loose from the Twisted Machinery. 01865_ Acquired Sub. Power Source. Flamer falls loose from the Twisted Machinery. 01873_ Acquired Flamer. 01902_ Flamer destroyed. Map ----- +----------------------------------------------------+ | ????????????????????????????" "??????#" #?????? | | ???????????????????????####?# #??????# #?????? | | ??????????????????????## "### ##?????# ##?????? | | ????????????????????### ""## ##?#### #??????? | | ????????????????????# # #?# ##?????? | | ????????????????????## ### #?????? | | ?????????????????????## ### "" ### ##?????? | | ?????????????????????## #### "" ##### ##??????? | | ?????????????????????# ### "" # ### ##???????? | | ?????????????????????## ""# "" ## ##???????? | | ?????????????????????# "" " #???????? | | ?????????????????????# ## "" #???????? | | ?????????????????????## ## "" ##???????? | | ?????????????????????# ### """ ""####????????? | | ?????????????????????# ### """#"" #??????????? | | ?????????????????????# ## """" ?????????? | | ?????????????????????# #### """ ????????? | | ?????????????????????## #?## "# "" ##???????? | | ?????????????????????## " ##?# ##?? ????????? | | ?????????????????????# " #### ###?????##???????? | | ?????????????????????# " ###?????????????????? | | ?????????????????????### ##?????????????????? | | ???????????????????????## #?????????????????? | | ????????????????????????# ####?????????????????? | | ????????????????????????## ##????????????????????? | | ????????????????????????#@ #?????????????????????? | | ??????????????????????? #???????????????????? | | ????????????????????? R ###???????????????????? | | ???????????????????"" ###?????????????????????? | | ??????????????????#""R #????????????????????????? | | ??????????????????#" ?????????????????????????? | | ??????????????????# """#?????????????????????????? | | ????????????????? ""##??????????????????????????? | | ???????????????? ""#????????????????????????????? | | ???????????????"""???????????????????????????????? | | ??????????????? ????????????????????????????????? | | ?????????????????????????????????????????????????? | | ?????????????????????????????????????????????????? | | ?????????????????????????????????????????????????? | | ?????????????????????????????????????????????????? | | ?????????????????????????????????????????????????? | | ?????????????????????????????????????????????????? | | ?????????????????????????????????????????????????? | | ?????????????????????????????????????????????????? | | ?????????????????????????????????????????????????? | | ?????????????????????????????????????????????????? | | ?????????????????????????????????????????????????? | | ?????????????????????????????????????????????????? | | ?????????????????????????????????????????????????? | | ?????????????????????????????????????????????????? | +----------------------------------------------------+ Best States ------------- Heat Dissipation 35 Energy Generation 15 Energy Capacity 250 Matter Stores 300 Matter Capacity 300 Sight Range 16 Terrain Scan Density 10 Evasion (%) 50 Recoil Reduction 2 Item Schematics ----------------- None Robot Schematics ------------------ None Fabricated ------------ Nothing Repaired ---------- Nothing Alien Tech Used ----------------- None Achievements -------------- None Challenges ------------ None Game ------ Seed GhostDisposableDesublimator Manual? 0 Play Time 00:07:43 Cumulative 46.4 hours Start 2025.07.24 @ 06:21:28 End 2025.07.24 @ 06:28:56 Sessions 1 Manual Loads 0 Difficulty Rogue Special Mode None Game No. 117 Rogue 117 Adventurer 0 Explorer 0 Win Type - Total 0 Types 0/0/0/0/0/0/0/0/0/0 Lore% 38 Gallery% 38 Achievement% 30 Wizard Run 0 Options --------- Layout 1 ASCII 0 Keyboard 0 Movement Mouse Keybinds 0 Fullscreen 1 Font 24/Smallcaps Map View 50x35 Zoom Use 0% Tactical HUD 1 Map Filters NONE Filters NONE Steam 1 RUN: 02365420-383b-43d2-9c9e-18bb05b56d41